bitfinex/quotes_BTCUSD_20250922
["timestamp","ask_amount","ask_price","bid_price","bid_amount"]
[1758509102964,0.09444,114530.0,114520.0,0.17464198]
[1758509103201,0.40204,114530.0,114520.0,0.17464198]
[1758509103697,0.09444,114530.0,114520.0,0.17464198]
[1758509103698,0.40196,114530.0,114520.0,0.17464198]
[1758509103928,0.40296,114530.0,114520.0,0.17464198]
[1758509104137,0.40508,114530.0,114520.0,0.17464198]
[1758509104385,0.42841,114530.0,114520.0,0.17964198]
[1758509104615,0.60626673,114530.0,114520.0,0.005]
[1758509104818,0.60526673,114530.0,114520.0,0.005]
[1758509105207,0.60526673,114530.0,114520.0,0.007]
[1758509105617,0.60526673,114530.0,114520.0,0.18164198]
[1758509106185,0.60526673,114530.0,114520.0,0.007]
[1758509106866,0.94526673,114530.0,114520.0,0.007]
[1758509107067,1.3019262,114530.0,114520.0,0.007]
[1758509107505,1.32516983,114530.0,114520.0,0.007]
[1758509107696,1.33131279,114530.0,114520.0,0.007]
[1758509107908,1.02379279,114530.0,114520.0,0.007]
[1758509108118,0.47464198,114520.0,114510.0,0.00012341]
[1758509108329,0.8388027,114520.0,114510.0,0.00012341]
[1758509108549,0.5603627,114520.0,114510.0,0.00012341]
[1758509108686,0.8674427,114520.0,114510.0,0.00012341]
[1758509108896,0.5603627,114520.0,114510.0,0.00012341]
[1758509109096,0.2603627,114520.0,114510.0,0.00012341]
[1758509109316,0.5674427,114520.0,114510.0,0.00012341]
[1758509110469,0.2603627,114520.0,114510.0,0.00012341]
[1758509110663,0.39264072,114520.0,114510.0,0.17478064]
[1758509110896,0.5672827,114520.0,114510.0,0.17478064]
[1758509111078,0.00535,114520.0,114510.0,0.17478064]
[1758509111314,0.649,114520.0,114510.0,0.17878064]
[1758509111511,0.64688,114520.0,114510.0,0.17878064]
[1758509111662,0.34211,114520.0,114510.0,0.17878064]
[1758509111864,0.64899,114520.0,114510.0,0.17878064]
[1758509112087,0.30895,114520.0,114510.0,0.17878064]
[1758509112252,0.30684,114520.0,114510.0,0.17878064]
[1758509112866,0.30895,114520.0,114510.0,0.17878064]
[1758509113112,0.02561,114520.0,114510.0,0.17878064]
[1758509113311,0.33245,114520.0,114510.0,0.17878064]
[1758509114337,0.30887,114520.0,114510.0,0.17878064]
[1758509115198,0.30676,114520.0,114510.0,0.17878064]
[1758509115399,0.46105,114530.0,114520.0,0.17464198]
[1758509115523,0.82637947,114530.0,114520.0,0.17464198]
[1758509116172,1.0010062,114530.0,114520.0,0.17464198]
[1758509116593,0.46316,114530.0,114520.0,0.17464198]
[1758509116741,0.40188,114530.0,114520.0,0.17464198]
[1758509117145,0.09544,114530.0,114520.0,0.17464198]
[1758509117350,0.40184,114530.0,114520.0,0.23973614]
[1758509117554,0.40184,114530.0,114520.0,0.20479388]
[1758509117968,0.40084,114530.0,114520.0,0.20479388]
[1758509118173,0.09444,114530.0,114520.0,0.20479388]
[1758509118371,0.40084,114530.0,114520.0,0.21079388]
[1758509119881,0.40606,114530.0,114520.0,0.21279388]
[1758509120090,0.42956,114530.0,114520.0,0.21279388]
[1758509120461,0.60418673,114530.0,114520.0,0.18264198]
[1758509120949,0.60418673,114530.0,114520.0,0.008]
[1758509122190,0.60418673,114530.0,114520.0,0.18264198]
[1758509125073,0.12316,114530.0,114520.0,0.18264198]
[1758509125271,0.42892,114530.0,114520.0,0.18264198]
[1758509125472,0.40227,114530.0,114520.0,0.21838424]
[1758509125698,0.40227,114530.0,114520.0,0.18264198]
[1758509126755,0.40016,114530.0,114520.0,0.18264198]
[1758509127014,0.40533,114530.0,114520.0,0.18264198]
[1758509127222,0.40016,114530.0,114520.0,0.18264198]
[1758509127415,0.09444,114530.0,114520.0,0.21279388]
[1758509127579,0.40004,114530.0,114520.0,0.21279388]
[1758509127778,0.4,114530.0,114520.0,0.25155133]
[1758509127958,0.4,114530.0,114520.0,0.21279388]
[1758509128160,0.74425,114540.0,114530.0,0.17462673]
[1758509128363,1.0518,114540.0,114530.0,0.17462673]
[1758509129090,1.05172,114540.0,114530.0,0.17462673]
[1758509129745,1.05172,114540.0,114530.0,0.17562673]
[1758509130547,1.02833,114540.0,114530.0,0.17562673]
[1758509130873,1.05156,114540.0,114530.0,0.17562673]
[1758509131077,1.05156,114540.0,114530.0,0.17862673]
[1758509132003,1.22617148,114540.0,114530.0,0.17862673]
[1758509132178,1.22617148,114540.0,114530.0,0.004]
[1758509132774,1.22617148,114540.0,114530.0,0.17862673]
[1758509132915,0.74624,114540.0,114530.0,0.17862673]
[1758509133118,1.05136,114540.0,114530.0,0.17862673]
[1758509134778,0.74624,114540.0,114530.0,0.17862673]
[1758509135030,1.05128,114540.0,114530.0,0.17862673]
[1758509135425,0.74624,114540.0,114530.0,0.17862673]
[1758509135868,1.02276,114540.0,114530.0,0.21696879]
[1758509136077,1.02475,114540.0,114530.0,0.21696879]
[1758509136298,1.05116,114540.0,114530.0,0.17862673]
[1758509136513,1.22577148,114540.0,114530.0,0.17862673]
[1758509136716,0.74624,114540.0,114530.0,0.17862673]
[1758509136926,1.22569148,114540.0,114530.0,0.17862673]
[1758509137479,1.05108,114540.0,114530.0,0.17862673]
[1758509138624,0.71784,114540.0,114530.0,0.17862673]
[1758509139034,1.02252,114540.0,114530.0,0.17862673]
[1758509139264,0.37784,114540.0,114530.0,0.17862673]
[1758509139564,0.68248,114540.0,114530.0,0.17862673]
[1758509139725,0.30663,114540.0,114530.0,0.17862673]
[1758509140073,0.09444,114550.0,114540.0,0.17461148]
[1758509140196,0.3778,114560.0,114550.0,0.17459624]
[1758509140405,0.68236,114560.0,114550.0,0.17459624]
[1758509140662,0.12125,114570.0,114560.0,0.174581]
[1758509140847,0.42776,114570.0,114560.0,0.174581]
[1758509141412,0.43685616,114570.0,114560.0,0.173581]
[1758509141595,0.42790133,114570.0,114560.0,0.173581]
[1758509142820,0.43590133,114570.0,114560.0,0.172581]
[1758509143216,0.42790133,114570.0,114560.0,0.172581]
[1758509143365,0.42990133,114570.0,114560.0,0.172581]
[1758509144083,0.43090133,114570.0,114560.0,0.172581]
[1758509144283,0.40767133,114570.0,114560.0,0.20992391]
[1758509144490,0.43090133,114570.0,114560.0,0.20992391]
[1758509146149,0.43090133,114570.0,114560.0,0.172581]
[1758509149471,0.12638133,114570.0,114560.0,0.172581]
[1758509149719,0.00354133,114570.0,114560.0,0.2027329]
[1758509150429,0.30734133,114570.0,114560.0,0.22898151]
[1758509150677,0.00254133,114570.0,114560.0,0.22898151]
[1758509150892,0.00054133,114570.0,114560.0,0.38598896]
[1758509151124,0.00054133,114570.0,114560.0,0.39498896]
[1758509152261,0.00054133,114570.0,114560.0,0.39398896]
[1758509152723,0.00054133,114570.0,114560.0,0.39798896]
[1758509152982,0.02894133,114570.0,114560.0,0.24198151]
[1758509153447,0.02576133,114570.0,114560.0,0.24198151]
[1758509153889,0.02894133,114570.0,114560.0,0.24198151]
[1758509155946,0.02894133,114570.0,114560.0,0.185581]
[1758509156681,0.20350709,114570.0,114560.0,0.181581]
[1758509156889,0.20350709,114570.0,114560.0,0.174581]
[1758509157349,0.20350709,114570.0,114560.0,0.179581]
[1758509158016,0.33218133,114570.0,114560.0,0.179581]
[1758509158207,0.50674709,114570.0,114560.0,0.179581]
[1758509158432,0.56188224,114570.0,114560.0,0.007]
[1758509158862,0.90188224,114570.0,114560.0,0.007]
[1758509159276,0.90188224,114570.0,114560.0,0.005]
[1758509159533,0.90188224,114570.0,114540.0,0.30495289]
[1758509159534,0.174581,114560.0,114540.0,0.30495289]
[1758509159778,0.33143,114550.0,114540.0,0.30495289]
[1758509159998,0.50602624,114550.0,114540.0,0.02625417]
[1758509160247,0.17462207,114540.0,114530.0,0.17462673]
[1758509160529,0.20078207,114540.0,114530.0,0.17462673]
[1758509160760,0.20293207,114540.0,114520.0,0.20963244]
[1758509160993,0.17992207,114540.0,114530.0,0.17462673]
[1758509161218,0.48288207,114540.0,114520.0,0.20963244]
[1758509161464,0.17777673,114530.0,114520.0,0.18337407]
[1758509161677,0.20078673,114530.0,114520.0,0.18337407]
[1758509161905,0.50585673,114530.0,114510.0,0.20965017]
[1758509162123,0.17992673,114530.0,114520.0,0.17464198]
[1758509162332,0.57720673,114530.0,114510.0,0.20965017]
[1758509162540,0.57720673,114530.0,114520.0,0.004]
[1758509162758,0.29733673,114530.0,114520.0,0.17864198]
[1758509162971,0.60017673,114530.0,114520.0,0.17464198]
[1758509163178,0.12271,114530.0,114520.0,0.17464198]
[1758509163390,0.12271,114530.0,114520.0,0.17664198]
[1758509163599,0.42551,114530.0,114520.0,0.17664198]
[1758509163803,0.43406892,114530.0,114520.0,0.17664198]
[1758509164436,0.60869565,114530.0,114520.0,0.17664198]
[1758509164864,0.60869565,114530.0,114520.0,0.002]
[1758509165293,0.60869565,114530.0,114520.0,0.007]
[1758509166190,1.00535512,114530.0,114520.0,0.007]
[1758509166402,1.01129608,114530.0,114520.0,0.007]
[1758509167278,0.70869608,114530.0,114520.0,0.007]
[1758509167485,1.01129608,114530.0,114520.0,0.007]
[1758509167707,0.70869608,114530.0,114520.0,0.005]
[1758509167927,1.01121608,114530.0,114520.0,0.005]
[1758509168154,0.71069608,114530.0,114520.0,0.005]
[1758509168359,0.17464198,114520.0,114510.0,0.00012341]
[1758509168572,0.2316827,114520.0,114510.0,0.17478064]
[1758509168781,0.2338327,114520.0,114510.0,0.17478064]
[1758509168993,0.5624327,114520.0,114510.0,0.17478064]
[1758509169198,0.5393827,114520.0,114510.0,0.17478064]
[1758509169424,0.5623927,114520.0,114510.0,0.17478064]
[1758509169630,0.5623927,114520.0,114510.0,0.00012341]
[1758509169839,0.5643927,114520.0,114510.0,0.00012341]
[1758509170260,0.38975072,114520.0,114510.0,0.17478064]
[1758509170872,0.5643927,114520.0,114510.0,0.17478064]
[1758509171308,0.2619927,114520.0,114510.0,0.17478064]
[1758509171516,0.5622727,114520.0,114510.0,0.17478064]
[1758509171727,0.5622327,114520.0,114510.0,0.17478064]
[1758509171974,0.2599927,114520.0,114510.0,0.17678064]
[1758509172199,0.5622327,114520.0,114510.0,0.17678064]
[1758509172407,0.2599927,114520.0,114510.0,0.17778064]
[1758509172586,0.5621927,114520.0,114510.0,0.17778064]
[1758509173010,0.5621927,114520.0,114510.0,0.00312341]
[1758509173911,0.2599927,114520.0,114510.0,0.17778064]
[1758509174118,0.5621927,114520.0,114510.0,0.17778064]
[1758509174319,0.38747072,114520.0,114510.0,0.17778064]
[1758509174521,0.5621127,114520.0,114510.0,0.17778064]
[1758509174963,0.5620727,114520.0,114510.0,0.17778064]
[1758509175501,0.5599927,114520.0,114510.0,0.00312341]
[1758509175702,0.8619927,114520.0,114510.0,0.00312341]
[1758509176319,0.68735072,114520.0,114510.0,0.17778064]
[1758509176463,0.8619927,114520.0,114510.0,0.17778064]
[1758509177085,0.38535072,114520.0,114510.0,0.17778064]
[1758509177279,0.8619527,114520.0,114510.0,0.17778064]
[1758509177729,0.8619527,114520.0,114510.0,0.00312341]
[1758509178611,0.38723072,114520.0,114510.0,0.17778064]
[1758509178797,0.5618727,114520.0,114510.0,0.17778064]
[1758509181211,0.08535072,114520.0,114510.0,0.17778064]
[1758509181415,0.47063892,114530.0,114520.0,0.17464198]
[1758509181590,0.52930839,114530.0,114520.0,0.17464198]
[1758509181807,1.00557512,114530.0,114510.0,0.17778064]
[1758509182164,1.00557512,114530.0,114520.0,0.17464198]
[1758509182165,0.70393512,114530.0,114520.0,0.17464198]
[1758509182368,1.00553512,114530.0,114520.0,0.17464198]
[1758509182798,0.52930839,114530.0,114520.0,0.17464198]
[1758509183009,0.53130839,114530.0,114520.0,0.17464198]
[1758509183219,0.83082839,114530.0,114520.0,0.17464198]
[1758509183427,0.8369289,114530.0,114520.0,0.17464198]
[1758509183634,0.8389289,114530.0,114520.0,0.17464198]
[1758509183838,0.8092389,114530.0,114520.0,0.17464198]
[1758509184045,0.40647892,114530.0,114520.0,0.17464198]
[1758509184252,0.40643892,114530.0,114520.0,0.20968424]
[1758509184456,0.39784,114530.0,114520.0,0.17464198]
[1758509184883,0.10513033,114530.0,114520.0,0.17464198]
[1758509185087,0.3978,114530.0,114520.0,0.17464198]
[1758509185298,0.3958,114530.0,114520.0,0.17464198]
[1758509185507,0.40087,114530.0,114520.0,0.17464198]
[1758509185712,0.40969759,114530.0,114520.0,0.18164198]
[1758509185888,0.43427759,114530.0,114520.0,0.18164198]
[1758509186534,0.43121759,114530.0,114520.0,0.18164198]
[1758509186736,0.42920759,114530.0,114520.0,0.18164198]
[1758509186943,0.40462759,114530.0,114520.0,0.18164198]
[1758509187124,0.3958,114530.0,114520.0,0.18164198]
[1758509187383,0.39572,114530.0,114520.0,0.18164198]
[1758509188415,0.41060247,114530.0,114520.0,0.18164198]
[1758509188957,0.40183884,114530.0,114520.0,0.18164198]
[1758509190262,0.40703884,114530.0,114520.0,0.18164198]
[1758509190838,0.40388884,114530.0,114520.0,0.18164198]
[1758509191053,0.40183884,114530.0,114520.0,0.18164198]
[1758509191728,0.40703884,114530.0,114520.0,0.18164198]
[1758509192141,0.43198884,114530.0,114520.0,0.18164198]
[1758509192350,0.44074893,114530.0,114520.0,0.18164198]
[1758509192546,0.43759893,114530.0,114520.0,0.18164198]
[1758509192723,0.44074893,114530.0,114520.0,0.18164198]
[1758509196252,0.41579893,114530.0,114520.0,0.18164198]
[1758509196454,0.40388884,114530.0,114520.0,0.18164198]
[1758509196872,0.43198884,114530.0,114520.0,0.18164198]
[1758509197048,0.44088562,114530.0,114520.0,0.18164198]
[1758509200238,0.41593562,114530.0,114520.0,0.18164198]
[1758509200452,0.10051884,114530.0,114520.0,0.18164198]
[1758509200680,0.30647884,114530.0,114520.0,0.18164198]
[1758509202176,0.30852884,114530.0,114520.0,0.18164198]
[1758509202381,0.31167884,114530.0,114520.0,0.18164198]
[1758509203789,0.33662884,114530.0,114520.0,0.18164198]
[1758509208600,0.30852884,114530.0,114520.0,0.18164198]
[1758509208905,0.33610884,114530.0,114520.0,0.18164198]
[1758509210264,0.0052,114530.0,114520.0,0.18164198]
[1758509210485,0.29972,114530.0,114520.0,0.18164198]
[1758509210863,0.30177,114530.0,114520.0,0.18164198]
[1758509211084,0.33600392,114530.0,114520.0,0.18164198]
[1758509211299,0.32987,114530.0,114520.0,0.18164198]
[1758509216551,0.32959,114530.0,114520.0,0.18164198]
[1758509217222,0.32951,114530.0,114520.0,0.18164198]
[1758509217623,0.32943,114530.0,114520.0,0.18164198]
[1758509217835,0.32628,114530.0,114520.0,0.18164198]
[1758509218004,0.37687085,114540.0,114530.0,0.17462673]
[1758509218212,0.67821085,114540.0,114530.0,0.17462673]
[1758509218408,0.34886085,114540.0,114530.0,0.2102536]
[1758509218609,0.4753,114550.0,114540.0,0.17461148]
[1758509218842,0.39888,114550.0,114540.0,0.17461148]
[1758509219037,0.42371,114550.0,114540.0,0.17461148]
[1758509219241,0.12451,114550.0,114540.0,0.17461148]
[1758509219441,0.42371,114550.0,114540.0,0.17461148]
[1758509221051,0.12651,114550.0,114540.0,0.17461148]
[1758509221250,0.09644,114550.0,114540.0,0.17461148]
[1758509221404,0.39552,114550.0,114540.0,0.20476338]
[1758509221812,0.39758,114550.0,114540.0,0.20476338]
[1758509222018,0.42559,114550.0,114540.0,0.20476338]
[1758509222215,0.42359,114550.0,114540.0,0.20476338]
[1758509222674,0.42359,114550.0,114540.0,0.20776338]
[1758509225855,0.42331,114550.0,114540.0,0.20776338]
[1758509226721,0.2988,114550.0,114540.0,0.20776338]
[1758509227156,0.30404,114550.0,114540.0,0.20776338]
[1758509227370,0.32887,114550.0,114540.0,0.20776338]
[1758509228616,0.32875,114550.0,114540.0,0.20776338]
[1758509229249,0.35200931,114560.0,114550.0,0.17459624]
[1758509229417,0.30948931,114560.0,114550.0,0.17459624]
[1758509229633,0.12239,114570.0,114560.0,0.174581]
[1758509229857,0.76305,114570.0,114560.0,0.174581]
[1758509230426,0.46457341,114570.0,114560.0,0.174581]
[1758509230850,0.76313341,114570.0,114560.0,0.174581]
[1758509231254,0.76313341,114570.0,114560.0,0.172581]
[1758509231873,0.42813341,114570.0,114560.0,0.172581]
[1758509232313,0.43013341,114570.0,114560.0,0.172581]
[1758509232499,0.4390097,114570.0,114560.0,0.20729872]
[1758509232704,0.4319297,114570.0,114560.0,0.20729872]
[1758509233683,0.4319297,114570.0,114560.0,0.172581]
[1758509233898,0.4319297,114570.0,114560.0,0.173581]
[1758509234085,0.09997341,114570.0,114560.0,0.173581]
[1758509234266,0.42297341,114570.0,114560.0,0.173581]
[1758509234458,0.42297341,114570.0,114560.0,0.176581]
[1758509236247,0.4315992,114570.0,114560.0,0.176581]
[1758509237010,0.4315992,114570.0,114560.0,0.24087563]
[1758509241350,0.4315992,114570.0,114560.0,0.004]
[1758509241351,1.00130011,114570.0,114560.0,0.004]
[1758509241995,1.02476297,114570.0,114560.0,0.004]
[1758509242203,1.32476297,114570.0,114560.0,0.004]
[1758509242680,1.3308843,114570.0,114560.0,0.004]
[1758509243092,1.0324843,114570.0,114560.0,0.003]
[1758509243297,1.30686144,114570.0,114560.0,0.003]
[1758509243503,1.30682144,114570.0,114560.0,0.003]
[1758509244327,1.30678144,114570.0,114560.0,0.003]
[1758509244524,0.174581,114560.0,114540.0,0.45304205]
[1758509244739,0.23028765,114560.0,114550.0,0.17459624]
[1758509244912,0.52800765,114560.0,114550.0,0.17459624]
[1758509245123,0.53006765,114560.0,114550.0,0.17459624]
[1758509245357,0.55761765,114560.0,114540.0,0.45304205]
[1758509245509,0.53006765,114560.0,114540.0,0.45304205]
[1758509245704,0.02755,114550.0,114540.0,0.45704205]
[1758509245946,0.02755,114550.0,114540.0,0.18734205]
[1758509246158,0.02961,114550.0,114540.0,0.18434205]
[1758509246348,0.32725,114550.0,114540.0,0.18434205]
[1758509247301,0.32725,114550.0,114540.0,0.25093564]
[1758509247530,0.02961,114550.0,114540.0,0.25093564]
[1758509247755,0.32717,114550.0,114540.0,0.24993564]
[1758509248158,0.50176624,114550.0,114540.0,0.17661148]
[1758509248570,0.50176624,114550.0,114540.0,0.18261148]
[1758509249240,0.50176624,114550.0,114540.0,0.17461148]
[1758509249580,0.32717,114550.0,114540.0,0.004]
[1758509249780,0.50176624,114550.0,114540.0,0.004]
[1758509250194,0.50176624,114550.0,114540.0,0.17861148]
[1758509251876,0.50176624,114550.0,114540.0,0.004]
[1758509252089,0.55766342,114550.0,114540.0,0.004]
[1758509253362,0.26010342,114550.0,114540.0,0.17861148]
[1758509253581,0.55742342,114550.0,114540.0,0.004]
[1758509253994,0.26010342,114550.0,114540.0,0.004]
[1758509254188,0.55738342,114550.0,114540.0,0.004]
[1758509256825,0.26010342,114550.0,114540.0,0.004]
[1758509257058,0.55718342,114550.0,114540.0,0.004]
[1758509257237,0.89718342,114550.0,114540.0,0.004]
[1758509258057,1.19718342,114550.0,114540.0,0.004]
[1758509258261,0.90622828,114550.0,114540.0,0.004]
[1758509258434,1.2295302,114550.0,114540.0,0.004]
[1758509258850,0.1746386,114530.0,114510.0,0.20965201]
[1758509259058,0.297,114520.0,114510.0,0.20965201]
[1758509260056,0.297,114520.0,114510.0,0.20977542]
[1758509260364,0.297,114520.0,114510.0,0.21277542]
[1758509260686,0.2002086,114530.0,114520.0,0.17464198]
[1758509260687,0.02557,114530.0,114520.0,0.17464198]
[1758509260897,0.49912673,114530.0,114520.0,0.17464198]
[1758509261537,0.21104769,114530.0,114520.0,0.17464198]
[1758509261747,0.00888096,114530.0,114520.0,0.17464198]
[1758509261946,0.30572096,114530.0,114520.0,0.17464198]
[1758509262156,0.00297,114530.0,114520.0,0.17464198]
[1758509262563,0.001,114530.0,114520.0,0.17464198]
[1758509262792,0.2978,114530.0,114520.0,0.17464198]
[1758509263416,0.001,114530.0,114520.0,0.17464198]
[1758509263626,0.29776,114530.0,114520.0,0.17464198]
[1758509263758,0.001,114530.0,114520.0,0.17464198]
[1758509264175,0.29772,114530.0,114520.0,0.20479388]
[1758509264373,0.001,114530.0,114520.0,0.23205138]
[1758509264945,0.34,114550.0,114540.0,0.17461148]
[1758509265151,0.63668,114550.0,114540.0,0.17461148]
[1758509265329,0.63865,114550.0,114540.0,0.17461148]
[1758509265729,0.34,114550.0,114540.0,0.17461148]
[1758509266111,0.3055554,114550.0,114540.0,0.17461148]
[1758509266318,0.0099154,114550.0,114540.0,0.17461148]
[1758509266519,0.2976,114550.0,114540.0,0.17461148]
[1758509267979,0.001,114550.0,114540.0,0.17461148]
[1758509268178,0.2976,114550.0,114540.0,0.17461148]
[1758509268540,0.2976,114550.0,114540.0,0.20086639]
[1758509269101,0.001,114550.0,114540.0,0.20086639]
[1758509269300,0.29744,114550.0,114540.0,0.20086639]
[1758509270151,0.29644,114550.0,114540.0,0.20086639]
[1758509270343,0.74330897,114560.0,114550.0,0.17459624]
[1758509270587,1.04167897,114560.0,114550.0,0.17459624]
[1758509271413,0.44527897,114560.0,114550.0,0.17459624]
[1758509271601,0.44540236,114560.0,114550.0,0.17459624]
[1758509271864,0.09456339,114560.0,114550.0,0.17459624]
[1758509272066,0.39088339,114560.0,114550.0,0.17459624]
[1758509272245,0.39188339,114560.0,114550.0,0.2008483]
[1758509272488,0.29744339,114560.0,114550.0,0.2008483]
[1758509273424,0.29644339,114560.0,114550.0,0.2008483]
[1758509273766,0.29644339,114560.0,114550.0,0.2068483]
[1758509273970,0.29644339,114560.0,114550.0,0.2088483]
[1758509274570,0.29644339,114560.0,114550.0,0.1988483]
[1758509274967,0.00012339,114560.0,114550.0,0.2290002]
[1758509275178,0.29628339,114560.0,114550.0,0.2290002]
[1758509276613,0.00012339,114560.0,114550.0,0.2685611]
[1758509276809,0.29616339,114560.0,114550.0,0.2685611]
[1758509280396,0.00012339,114560.0,114550.0,0.2685611]
[1758509281509,0.00012339,114560.0,114550.0,0.35383077]
[1758509282120,0.00012339,114560.0,114550.0,0.64955077]
[1758509284347,0.00012339,114560.0,114550.0,0.35383077]
[1758509284579,0.00012339,114560.0,114550.0,0.64943077]
[1758509284798,0.00012339,114560.0,114550.0,0.35383077]
[1758509285653,0.02786339,114560.0,114550.0,0.35383077]
[1758509285865,0.20244439,114560.0,114550.0,0.2088483]
[1758509286074,0.20244439,114560.0,114550.0,0.03425206]
[1758509288391,0.20244439,114560.0,114550.0,0.03225206]
[1758509288547,0.20244439,114560.0,114550.0,0.02625206]
[1758509288750,0.20244439,114560.0,114550.0,0.02925206]
[1758509289729,0.20244439,114560.0,114550.0,0.03025206]
[1758509290707,0.20244439,114560.0,114550.0,0.004]
[1758509290945,0.50244439,114560.0,114550.0,0.004]
[1758509291158,0.89796052,114560.0,114550.0,0.004]
[1758509291287,0.9040837,114560.0,114550.0,0.004]
[1758509292098,0.9040837,114560.0,114550.0,0.001]
[1758509292676,0.17461148,114540.0,114530.0,0.02625649]
[1758509292937,0.56425148,114540.0,114530.0,0.02625649]
[1758509293115,0.27105148,114540.0,114530.0,0.20088322]
[1758509293367,0.29698148,114540.0,114530.0,0.02625649]
[1758509293583,0.59210148,114540.0,114530.0,0.02625649]
[1758509293970,0.29698148,114540.0,114530.0,0.02825649]
[1758509294184,0.59210148,114540.0,114530.0,0.02825649]
[1758509294379,0.29698148,114540.0,114530.0,0.20288322]
[1758509294604,0.59206148,114540.0,114530.0,0.20888322]
[1758509295359,0.41745,114540.0,114530.0,0.20888322]
[1758509295610,0.29698148,114540.0,114530.0,0.20888322]
[1758509295858,0.59202148,114540.0,114530.0,0.20888322]
[1758509296102,0.29698148,114540.0,114530.0,0.20888322]
[1758509296328,0.0944,114540.0,114530.0,0.20888322]
[1758509296542,0.295,114540.0,114530.0,0.23903512]
[1758509297002,0.64376344,114560.0,114540.0,0.17459808]
[1758509297216,0.46045339,114560.0,114550.0,0.17459624]
[1758509297420,0.75745339,114560.0,114550.0,0.17459624]
[1758509298140,0.75741339,114560.0,114550.0,0.17459624]
[1758509298360,0.75841339,114560.0,114550.0,0.17459624]
[1758509298580,0.93199439,114560.0,114550.0,0.17459624]
[1758509298793,0.93299439,114560.0,114550.0,0.17459624]
[1758509299006,0.63807439,114560.0,114540.0,0.17459808]
[1758509299206,0.02593,114550.0,114540.0,0.17459808]
[1758509299342,0.32281,114550.0,114540.0,0.17459808]
[1758509300391,0.32281,114550.0,114540.0,0.17559808]
[1758509301473,0.32281,114550.0,114540.0,0.20485251]
[1758509302202,0.02797,114550.0,114540.0,0.20485251]
[1758509302433,0.49728624,114550.0,114540.0,0.03025443]
[1758509302639,0.49728624,114550.0,114540.0,0.004]
[1758509305470,0.89318342,114550.0,114540.0,0.004]
[1758509305711,0.90458539,114550.0,114540.0,0.004]
[1758509305935,1.19302342,114550.0,114540.0,0.004]
[1758509306158,0.59846342,114550.0,114540.0,0.004]
[1758509306597,0.89298342,114550.0,114540.0,0.004]
[1758509307250,0.89294342,114550.0,114540.0,0.004]
[1758509307641,0.89294342,114550.0,114540.0,0.17861148]
[1758509307642,0.54256624,114550.0,114540.0,0.17861148]
[1758509307802,0.54256624,114550.0,114540.0,0.004]
[1758509307803,0.83704624,114550.0,114540.0,0.004]
[1758509308384,0.83700624,114550.0,114540.0,0.004]
[1758509311709,0.54256624,114550.0,114540.0,0.004]
[1758509311970,0.81408624,114550.0,114540.0,0.004]
[1758509312203,0.83661624,114550.0,114540.0,0.004]
[1758509312405,0.83649624,114550.0,114540.0,0.004]
[1758509313585,0.66195,114550.0,114540.0,0.17861148]
[1758509313793,0.83654624,114550.0,114540.0,0.004]
[1758509315877,0.36767,114550.0,114540.0,0.17861148]
[1758509316115,0.83642624,114550.0,114540.0,0.004]
[1758509318898,0.83642624,114550.0,114540.0,0.17861148]
[1758509319267,0.81377624,114550.0,114540.0,0.17861148]
[1758509319628,0.83630624,114550.0,114540.0,0.17861148]
[1758509320962,0.34,114550.0,114540.0,0.17861148]
[1758509321198,0.43762339,114560.0,114550.0,0.17459624]
[1758509321415,0.98628059,114560.0,114540.0,0.17861148]
[1758509321620,0.98628059,114560.0,114550.0,0.17459624]
[1758509322557,0.90923439,114560.0,114550.0,0.17459624]
[1758509322759,0.93176439,114560.0,114550.0,0.17459624]
[1758509322961,0.75718339,114560.0,114550.0,0.17459624]
[1758509323435,0.93176439,114560.0,114550.0,0.17459624]
[1758509324492,0.75718339,114560.0,114550.0,0.17459624]
[1758509325996,0.75718339,114560.0,114550.0,0.17559624]
[1758509326802,0.73365339,114560.0,114550.0,0.17559624]
[1758509326962,0.75618339,114560.0,114550.0,0.17559624]
[1758509327361,0.75618339,114560.0,114550.0,0.17859624]
[1758509329986,0.93076439,114560.0,114550.0,0.17859624]
[1758509330429,0.75618339,114560.0,114550.0,0.17859624]
[1758509331897,0.46226339,114560.0,114550.0,0.17859624]
[1758509332073,0.75578339,114560.0,114550.0,0.17859624]
[1758509332923,0.90783439,114560.0,114550.0,0.17859624]
[1758509333140,0.93036439,114560.0,114550.0,0.17859624]
[1758509334625,0.75574339,114560.0,114550.0,0.17859624]
[1758509335925,0.93032439,114560.0,114550.0,0.17859624]
[1758509336361,0.93032439,114560.0,114550.0,0.004]
[1758509336960,0.93032439,114560.0,114550.0,0.17859624]
[1758509339452,0.93016439,114560.0,114550.0,0.17859624]
[1758509341144,0.93008439,114560.0,114550.0,0.17859624]
[1758509343151,0.02774,114560.0,114550.0,0.17859624]
[1758509343367,0.32094,114560.0,114550.0,0.17859624]
[1758509344088,0.32082,114560.0,114550.0,0.17859624]
[1758509344313,0.29308,114560.0,114550.0,0.17859624]
[1758509344522,0.65008673,114570.0,114550.0,0.17859624]
[1758509344523,0.47248,114570.0,114560.0,0.174581]
[1758509344737,0.47767,114570.0,114560.0,0.174581]
[1758509344946,0.77071,114570.0,114560.0,0.174581]
[1758509345166,0.79354,114570.0,114560.0,0.174581]
[1758509345776,0.79454,114570.0,114560.0,0.174581]
[1758509346191,0.96910576,114570.0,114550.0,0.17459624]
[1758509346409,0.200451,114560.0,114540.0,0.54489061]
[1758509346617,0.29815,114550.0,114540.0,0.5751659]
[1758509346775,0.29511,114550.0,114540.0,0.5751659]
[1758509346974,0.29511,114550.0,114540.0,0.54891455]
[1758509347249,0.0004,114570.0,114560.0,0.174581]
[1758509347458,0.0004,114570.0,114560.0,0.2047329]
[1758509347644,0.29432,114570.0,114560.0,0.2047329]
[1758509347859,0.29332,114570.0,114560.0,0.2047329]
[1758509348809,0.29332,114570.0,114560.0,0.2077329]
[1758509348961,0.29332,114570.0,114560.0,0.24685743]
[1758509349772,0.29541,114570.0,114560.0,0.24685743]
[1758509350985,0.32282,114570.0,114560.0,0.2077329]
[1758509351187,0.32282,114570.0,114560.0,0.2087329]
[1758509351591,0.29316,114570.0,114560.0,0.2087329]
[1758509352258,0.29312,114570.0,114560.0,0.2087329]
[1758509352683,0.0004,114570.0,114560.0,0.2087329]
[1758509352890,0.0004,114570.0,114560.0,0.33584925]
[1758509353675,0.0004,114570.0,114560.0,0.36209598]
[1758509355358,0.00249,114570.0,114560.0,0.36209598]
[1758509355570,0.00552,114570.0,114560.0,0.23497963]
[1758509355781,0.0299,114570.0,114560.0,0.2087329]